bitfinex-derivatives/quotes_SOLF0:USTF0_20250905
["timestamp","ask_amount","ask_price","bid_price","bid_amount"]
[1757079407671,0.03483803,209.12,209.09,66.9361]
[1757079407976,11.15466343,209.23,209.11,7.48]
[1757079408177,11.15466343,209.23,209.11,74.4087]
[1757079408378,3.32466343,209.23,209.14,66.9199]
[1757079408571,3.32466343,209.23,209.19,66.9024]
[1757079409075,5.31695021,209.29,209.2,66.9008]
[1757079409277,5.31695021,209.29,209.22,66.8928]
[1757079409476,5.31695021,209.29,209.26,4.2995]
[1757079409875,5.31695021,209.29,209.21,8.08]
[1757079410478,7.79,209.3,209.23,0.03529778]
[1757079410779,7.79,209.3,209.17,4.3012]
[1757079410978,7.79,209.3,209.24,0.03072758]
[1757079412580,134.19333319,209.36,209.24,0.03072758]
[1757079412975,7.79,209.36,209.27,66.8781]
[1757079413170,7.79,209.36,209.27,66.8788]
[1757079413379,5.31695021,209.41,209.32,66.8627]
[1757079413779,5.31695021,209.41,209.34,0.03524792]
[1757079414782,5.31695021,209.41,209.35,4.2977]
[1757079415275,5.31695021,209.41,209.37,4.2972]
[1757079415475,5.31695021,209.41,209.37,12.3772]
[1757079415680,7.79,209.48,209.37,8.08]
[1757079416077,13.10695021,209.53,209.37,8.08]
[1757079416277,13.10695021,209.53,209.4,0.03153529]
[1757079416671,13.10695021,209.53,209.37,8.08]
[1757079416873,13.10695021,209.53,209.44,0.03542079]
[1757079417578,8.91037484,209.51,209.44,0.03542079]
[1757079417780,7.79,209.5,209.44,0.03542079]
[1757079420280,5.31695021,209.53,209.44,0.03542079]
[1757079420483,5.31695021,209.53,209.51,4.2944]
[1757079420678,1.09542531,209.57,209.54,66.7935]
[1757079421083,1.09542531,209.57,209.56,4.2934]
[1757079421284,10.63390042,209.64,209.61,66.7715]
[1757079421480,10.63390042,209.64,209.62,66.7682]
[1757079421682,10.63390042,209.64,209.63,131.68]
[1757079421886,7.79,209.81,209.67,66.7523]
[1757079422093,7.79,209.81,209.68,75.65907484]
[1757079422394,7.79,209.88,209.72,66.7355]
[1757079422587,7.79,209.88,209.73,206.92307484]
[1757079422792,7.79,209.88,209.73,79.93367484]
[1757079423091,7.79,209.88,209.78,0.0336645]
[1757079424693,16.70037484,209.88,209.78,0.0336645]
[1757079425086,316.59037484,209.98,209.61,0.03]
[1757079425087,7.79,209.82,209.61,0.03]
[1757079425287,7.79,209.77,209.61,0.03]
[1757079426287,8.91037484,209.78,209.59,307.56]
[1757079426288,0.03394663,209.71,209.59,307.56]
[1757079426495,0.03394663,209.71,209.6,0.03]
[1757079426998,0.03394663,209.71,209.63,0.03051791]
[1757079429000,7.82394663,209.71,209.63,0.03051791]
[1757079429802,0.03394663,209.71,209.63,0.03051791]
[1757079430004,0.03394663,209.71,209.64,131.84]
[1757079430302,0.03394663,209.71,209.65,0.03]
[1757079431296,0.03394663,209.71,209.63,0.03051791]
[1757079432094,7.79,209.7,209.63,0.03051791]
[1757079432802,0.03394663,209.71,209.63,0.03051791]
[1757079434912,7.82394663,209.71,209.63,0.03051791]
[1757079437909,0.03394663,209.71,209.63,0.03051791]
[1757079438611,0.03394663,209.71,209.63,8.94089275]
[1757079439016,0.03394663,209.71,209.67,8.91037484]
[1757079439316,7.73,209.9,209.68,135.651]
[1757079439511,7.73,209.9,209.71,8.91037484]
[1757079440311,7.73,209.97,209.75,75.63827484]
[1757079440508,7.73,209.97,209.78,0.03438411]
[1757079440916,7.73,209.97,209.75,8.91037484]
[1757079441115,7.73,209.97,209.85,0.03393319]
[1757079441314,8.91037484,209.92,209.68,8.91037484]
[1757079441515,7.73,209.91,209.69,131.37]
[1757079441720,7.73,209.91,209.7,0.05]
[1757079442314,7.73,209.91,209.71,71.98]
[1757079442510,8.91037484,209.87,209.7,0.05]
[1757079442817,7.73,209.86,209.7,0.05]
[1757079443015,7.73,209.81,209.61,307.22]
[1757079443213,24.68,209.94,209.61,307.22]
[1757079443214,8.91037484,209.77,209.61,307.22]
[1757079443416,7.73,209.76,209.61,307.22]
[1757079443912,7.73,209.76,209.57,0.05]
[1757079444110,7.73,209.71,209.56,3.72780094]
[1757079444308,7.73,209.71,209.57,0.05]
[1757079444712,7.73,209.71,209.58,119.4]
[1757079444913,7.73,209.71,209.59,3.72780094]
[1757079445114,7.73,209.8,209.59,12.63817578]
[1757079445321,7.73,209.8,209.6,0.05]
[1757079446019,7.73,209.8,209.61,10.24]
[1757079446219,7.73,209.79,209.61,10.24]
[1757079446811,7.73,209.79,209.62,43.96]
[1757079447216,7.73,209.79,209.64,0.05]
[1757079448416,7.73,209.79,209.59,12.68817578]
[1757079448616,8.91037484,209.76,209.59,3.72780094]
[1757079448833,7.73,209.75,209.59,3.72780094]
[1757079449833,7.73,209.75,209.57,0.05]
[1757079450630,7.73,209.75,209.57,10.15]
[1757079451334,7.73,209.75,209.58,44.36]
[1757079451521,7.73,209.75,209.57,0.05]
[1757079451725,7.73,209.75,209.58,67.52]
[1757079451924,7.73,209.75,209.57,0.05]
[1757079452127,7.73,209.75,209.58,87.72]
[1757079452526,7.73,209.75,209.58,96.63037484]
[1757079452725,7.73,209.83,209.63,0.05]
[1757079453928,7.73,209.85,209.63,0.05]
[1757079454135,8.91037484,209.86,209.63,50.93]
[1757079454434,7.73,209.85,209.63,50.93]
[1757079454731,7.73,209.77,209.56,3.77780094]
[1757079455030,7.73,209.73,209.56,3.77780094]
[1757079455229,7.73,209.73,209.56,12.68817578]
[1757079455436,7.73,209.73,209.64,3.72780094]
[1757079460537,7.73,209.79,209.65,0.05]
[1757079461825,7.73,209.79,209.65,3.77780094]
[1757079462339,5.51829977,209.82,209.65,3.77780094]
[1757079462340,7.73,209.77,209.65,3.72780094]
[1757079462534,7.73,209.73,209.65,3.72780094]
[1757079463230,7.73,209.69,209.63,3.89803705]
[1757079463435,7.73,209.69,209.6,5.21849401]
[1757079463436,7.73,209.65,209.6,5.21849401]
[1757079463632,5.51829977,209.66,209.6,5.21849401]
[1757079463837,7.76054746,209.65,209.6,5.21849401]
[1757079464030,0.03054746,209.65,209.6,5.21849401]
[1757079464429,5.51829977,209.62,209.56,7.82774101]
[1757079464638,7.73,209.61,209.56,7.82774101]
[1757079464833,5.51829977,209.62,209.56,7.82774101]
[1757079465034,7.73,209.61,209.56,7.82774101]
[1757079465234,0.03268153,209.61,209.56,7.82774101]
[1757079465531,7.73,209.6,209.56,7.82774101]
[1757079465937,0.03268153,209.61,209.56,7.82774101]
[1757079466133,7.76268153,209.61,209.56,7.82774101]
[1757079466337,0.03268153,209.61,209.56,7.82774101]
[1757079467442,0.03268153,209.61,209.49,7.76]
[1757079468039,0.03268153,209.61,209.51,7.76]
[1757079468344,7.73,209.66,209.51,7.76]
[1757079468942,0.03314574,209.61,209.51,7.76]
[1757079469942,5.51829977,209.6,209.47,184.72426106]
[1757079470142,5.51829977,209.6,209.45,7.43]
[1757079470344,5.51829977,209.56,209.45,7.43]
[1757079470536,0.0344782,209.55,209.45,7.43]
[1757079472540,0.0344782,209.55,209.41,15.25774101]
[1757079472842,12.91829977,209.56,209.41,15.25774101]
[1757079473045,7.4,209.55,209.41,15.25774101]
[1757079473343,0.03299344,209.5,209.41,15.25774101]
[1757079473739,0.03299344,209.5,209.42,7.43]
[1757079475349,0.03299344,209.5,209.41,7.82774101]
[1757079476243,7.4,209.46,209.41,7.82774101]
[1757079476446,5.51829977,209.47,209.41,7.82774101]
[1757079476751,7.4,209.46,209.41,7.82774101]
[1757079476942,7.4,209.42,209.33,10.43107034]
[1757079477851,0.03253022,209.4,209.33,10.43107034]
[1757079478847,0.03253022,209.4,209.29,7.43]
[1757079480050,0.03253022,209.4,209.31,7.43]
[1757079480354,12.91829977,209.47,209.31,7.43]
[1757079480753,0.03096658,209.38,209.31,7.43]
[1757079481954,0.03096658,209.38,209.27,35.72]
[1757079482154,0.03096658,209.38,209.28,7.43]
[1757079482351,0.03096658,209.38,209.28,12.94829977]
[1757079482552,0.03096658,209.38,209.29,7.43]
[1757079482850,0.03096658,209.38,209.33,7.43]
[1757079483253,0.03096658,209.38,209.32,5.51829977]
[1757079483448,0.03096658,209.38,209.29,7.43]
[1757079483655,0.03096658,209.38,209.32,7.43]
[1757079485756,0.03096658,209.38,209.25,7.43]
[1757079486151,5.51829977,209.42,209.25,7.43]
[1757079486457,0.03018206,209.34,209.25,7.43]
[1757079486854,0.03018206,209.34,209.28,5.51829977]
[1757079487262,0.03018206,209.34,209.28,9.81729977]
[1757079487457,5.51829977,209.46,209.29,7.43]
[1757079487658,7.4,209.45,209.29,7.46663439]
[1757079487858,7.4,209.45,209.29,7.43]
[1757079488659,7.4,209.45,209.35,0.03151375]
[1757079489159,7.4,209.41,209.35,0.03151375]
[1757079489560,7.4,209.41,209.29,7.43]
[1757079489759,5.51829977,209.42,209.36,0.03508457]
[1757079489966,7.4,209.41,209.36,0.03508457]
[1757079490864,5.51829977,209.42,209.36,0.03508457]
[1757079491463,5.99829977,209.42,209.36,0.03508457]
[1757079491666,7.4,209.37,209.24,7.43]
[1757079491865,7.4,209.33,209.24,7.43]
[1757079492165,7.4,209.33,209.17,7.43]
[1757079493158,0.03145127,209.27,209.17,7.43]
[1757079493568,0.03145127,209.27,209.19,7.43]
[1757079493864,0.03145127,209.27,209.19,12.94829977]
[1757079494260,0.03145127,209.27,209.19,7.43]
[1757079495759,0.03145127,209.27,209.16,307.46]
[1757079496860,0.03145127,209.27,209.15,7.43]
[1757079497465,7.4,209.26,209.15,7.43]
[1757079498163,0.03008255,209.23,209.15,7.43]
[1757079498664,0.03008255,209.23,209.16,7.55]
[1757079499067,7.62,209.28,209.16,7.55]
[1757079499260,5.51829977,209.26,209.16,7.55]
[1757079499557,0.0361469,209.22,209.16,7.55]
[1757079501162,0.0361469,209.22,209.11,7.55]
[1757079502167,5.55444667,209.22,209.11,7.55]
[1757079503159,5.51829977,209.18,209.04,7.55]
[1757079503861,0.03527646,209.13,209.04,7.55]
[1757079504069,0.03527646,209.13,209.06,7.55]
[1757079505162,0.03527646,209.13,209.03,307.72]
[1757079505163,0.03527646,209.13,209.03,380.19739977]
[1757079505364,0.03527646,209.13,209.08,7.55]
[1757079505965,0.03527646,209.13,209.07,13.06829977]
[1757079506171,0.03527646,209.13,209.07,142.52829977]
[1757079506673,0.03527646,209.13,209.07,146.83189977]
[1757079506870,0.03527646,209.13,209.08,7.55]
[1757079507070,0.03527646,209.13,209.07,134.97829977]
[1757079507271,0.03527646,209.13,209.08,7.55]
[1757079507568,5.51829977,209.26,209.11,7.55]
[1757079507770,7.62,209.29,209.11,5.51829977]
[1757079508073,7.62,209.29,209.12,7.55]
[1757079508273,7.62,209.25,209.12,7.55]
[1757079508571,5.51829977,209.18,209.09,104.52]
[1757079508767,7.62,209.17,209.01,7.55]
[1757079508970,7.62,209.17,209.01,137.01]
[1757079509272,0.0366939,209.16,209.04,7.55]
[1757079509863,7.62,209.15,209.04,7.55]
[1757079510264,5.51829977,209.14,209.0,181.33406032]
[1757079510468,0.03334659,209.12,209.01,7.55]
[1757079512176,0.03334659,209.12,209.01,11.8547]
[1757079513380,0.03334659,209.12,209.02,4.3045]
[1757079513672,0.03334659,209.12,209.06,66.9483]
[1757079513973,0.03334659,209.12,209.08,4.3034]
[1757079514168,0.03334659,209.12,209.09,7.55]
[1757079514876,0.03334659,209.12,209.06,7.55]
[1757079515277,0.03334659,209.12,209.01,7.55]
[1757079515585,0.03334659,209.12,209.02,129.16]
[1757079515880,0.03334659,209.12,209.01,11.8549]
[1757079516071,0.03334659,209.12,209.02,129.1]
[1757079516576,0.03334659,209.12,209.01,140.9549]
[1757079516773,0.03334659,209.12,209.01,7.55]
[1757079517474,0.03334659,209.12,209.01,11.8549]
[1757079518473,0.03334659,209.12,209.01,7.55]
[1757079520180,0.03334659,209.12,209.03,7.55]
[1757079520482,0.03334659,209.12,209.06,7.55]
[1757079520872,0.03334659,209.12,209.01,7.55]
[1757079522676,7.62,209.11,209.01,7.55]
[1757079522978,7.62,209.11,208.94,7.55]
[1757079523571,8.92606083,209.12,208.94,7.55]
[1757079523572,0.0360718,209.05,208.94,7.55]
[1757079523772,7.62,209.04,208.9,307.92]
[1757079523984,16.54606083,209.04,208.89,12.7726451]
[1757079524277,17.72,209.1,208.9,7.55]
[1757079524486,7.62,209.11,208.93,7.55]
[1757079524487,0.03232534,208.99,208.93,7.55]
[1757079524672,0.03232534,208.99,208.95,7.55]
[1757079524984,8.92606083,209.1,208.95,7.55]
[1757079525278,0.03047762,208.99,208.95,7.55]
[1757079525486,7.62,209.04,208.95,7.55]
[1757079525782,0.030586,208.99,208.91,7.55]
[1757079526185,7.62,209.09,208.91,7.55]
[1757079526384,0.03393323,208.97,208.91,136.41]
[1757079526583,0.03393323,208.97,208.91,7.55]
[1757079526780,7.62,209.07,208.91,7.55]
[1757079526974,0.03289286,208.96,208.89,96.3026451]
[1757079527178,7.62,209.04,208.9,7.55]
[1757079527583,0.03499671,208.95,208.89,133.1273]
[1757079527781,0.03499671,208.95,208.89,7.55]
[1757079528286,0.03499671,208.95,208.88,3.94246052]
[1757079532692,8.01,208.94,208.88,3.94246052]
[1757079532988,8.92606083,208.91,208.88,3.94246052]
[1757079533185,8.92606083,208.91,208.77,7.54]
[1757079533186,8.01,208.9,208.78,3.94246052]
[1757079533578,8.01,208.86,208.78,3.94246052]
[1757079533892,8.01,208.82,208.74,5.2226451]
[1757079534183,0.03297208,208.86,208.54,7.54]
[1757079534184,2.52,208.74,208.54,7.54]
[1757079534388,2.52,208.74,208.59,7.54]
[1757079535288,0.03529377,208.71,208.59,7.54]
[1757079535680,0.03529377,208.71,208.57,67.1074]
[1757079535984,0.03529377,208.71,208.63,17.97107034]
[1757079536185,0.03529377,208.71,208.63,10.43107034]
[1757079538090,0.03529377,208.71,208.65,4.3122]
[1757079538279,0.03529377,208.71,208.66,67.077]
[1757079538485,2.52,208.84,208.69,7.54]
[1757079539392,8.92606083,208.88,208.72,7.54]
[1757079539690,2.55,208.9,208.74,7.57374441]
[1757079540087,308.42,208.94,208.78,7.54]
[1757079540386,11.47606083,209.0,208.81,7.54]
[1757079540787,2.55,209.0,208.82,96.42]
[1757079540982,8.92606083,208.99,208.88,0.03563049]
[1757079541188,5.32207206,208.93,208.88,0.03563049]
[1757079541385,5.32207206,208.93,208.84,7.54]
[1757079541689,7.76342193,208.96,208.87,7.54]
[1757079541888,7.76342193,208.96,208.88,4.3076]
[1757079542283,7.76342193,208.96,208.87,7.54]
[1757079542685,0.03461065,208.94,208.87,7.54]
[1757079543291,10.41601618,209.01,208.92,4.3066]
[1757079543492,10.41601618,209.01,208.94,7.54]
[1757079544391,10.41601618,209.01,208.85,7.54]
[1757079544690,10.41601618,209.01,208.95,0.03635401]
[1757079545391,10.41601618,209.01,208.97,4.3056]
[1757079545691,8.01,209.12,208.95,0.03635401]
[1757079545894,8.01,209.12,208.98,8.92606083]
[1757079546296,8.01,209.12,209.03,0.03300961]
[1757079547698,137.15,209.12,209.03,0.03300961]
[1757079548296,8.01,209.12,209.03,0.03300961]
[1757079550500,8.01,209.1,209.03,0.03300961]
[1757079550705,437.64,209.13,209.03,0.03300961]
[1757079551198,0.03033717,209.1,209.03,0.03300961]
[1757079552606,8.01,209.09,209.03,0.03300961]
[1757079554604,0.03033717,209.1,209.03,0.03300961]
[1757079555703,0.03033717,209.1,209.04,6.06]
[1757079556409,0.03033717,209.1,209.03,0.03300961]
[1757079559512,0.03033717,209.1,209.04,6.06]
[1757079561711,4.769,209.38,209.04,6.06]
[1757079561908,7.63,209.27,209.12,6.03]
[1757079562413,123.85015226,209.33,209.16,6.03]
[1757079562414,75.51,209.32,209.16,6.03]
[1757079563111,75.51,209.32,209.22,0.03435647]
[1757079563713,7.63,209.32,209.22,0.03435647]
[1757079574617,7.63,209.3,209.13,6.02]
[1757079575423,78.9,209.29,209.13,6.02]
[1757079575820,7.63,209.3,209.13,6.02]
[1757079576020,7.63,209.3,209.15,6.06]
[1757079576624,7.63,209.3,209.09,6.06]
[1757079577121,8.92606083,209.27,209.09,6.06]
[1757079577425,7.63,209.26,209.09,6.06]
[1757079577720,7.63,209.26,209.12,6.06]
[1757079578924,123.85015226,209.33,209.13,6.06]
[1757079578925,7.63,209.31,209.13,6.06]
[1757079579328,7.63,209.31,209.17,6.06]
[1757079579819,7.63,209.31,209.12,6.06]
[1757079580921,7.63,209.31,209.14,6.06]
[1757079582528,135.23,209.31,209.14,6.06]
[1757079583228,7.63,209.29,209.14,6.06]
[1757079584426,7.63,209.29,209.17,5.54610643]
[1757079584623,7.63,209.29,209.18,6.06]
[1757079585122,0.03255189,209.26,209.21,0.03331448]
[1757079585829,0.03255189,209.26,209.22,6.06]
[1757079586034,0.03255189,209.26,209.21,0.03331448]
[1757079586328,0.03255189,209.26,209.21,6.09331448]
[1757079586526,0.03255189,209.26,209.21,0.03331448]
[1757079586825,0.03255189,209.26,209.22,6.06]
[1757079587026,0.03255189,209.26,209.21,5.57942091]
[1757079587528,0.03255189,209.26,209.22,6.06]
[1757079587925,0.03255189,209.26,209.25,5.54610643]
[1757079588130,7.65,209.38,209.25,11.60610643]
[1757079588328,7.65,209.38,209.25,6.06]
[1757079588830,7.65,209.38,209.25,11.60610643]
[1757079589227,7.65,209.45,209.29,5.54610643]
[1757079589423,7.65,209.45,209.34,5.54610643]
[1757079589628,7.65,209.45,209.34,11.59610643]
[1757079589828,5.24876892,209.46,209.34,11.59610643]
[1757079590029,5.24876892,209.46,209.37,0.03581311]
[1757079592037,7.65,209.45,209.37,0.03581311]
[1757079594435,5.58187326,209.43,209.25,10.78201611]
[1757079594640,7.65,209.42,209.25,10.78201611]
[1757079595840,5.54610643,209.43,209.25,10.78201611]
[1757079596031,7.65,209.38,209.25,5.23590968]
[1757079596437,7.65,209.34,209.25,5.23590968]
[1757079599037,7.65,209.3,209.25,5.23590968]
[1757079599831,5.54610643,209.31,209.25,5.23590968]
[1757079600030,7.65,209.3,209.25,5.23590968]
[1757079600234,13.19610643,209.31,209.18,6.09]
[1757079600439,7.65,209.31,209.18,6.09]
[1757079601236,7.65,209.31,209.19,6.09]
[1757079601437,5.54610643,209.35,209.19,6.09]
[1757079601637,7.65,209.36,209.23,6.1243935]
[1757079602041,7.65,209.36,209.23,6.09]
[1757079602339,7.65,209.36,209.27,0.03155642]
[1757079602541,5.54610643,209.4,209.27,6.12155642]
[1757079602845,5.54610643,209.4,209.27,6.09]
[1757079603344,7.65,209.39,209.31,0.03248937]
[1757079604042,5.54610643,209.36,209.31,0.03248937]
[1757079604238,7.65,209.35,209.31,0.03248937]
[1757079604639,77.31610643,209.4,209.31,0.03248937]
[1757079604944,7.65,209.35,209.21,6.09]
[1757079607142,5.54610643,209.28,209.19,3.966418]
[1757079607342,7.65,209.27,209.19,3.966418]
[1757079607639,5.54610643,209.24,209.19,3.966418]
[1757079608234,7.65,209.23,209.19,3.966418]
[1757079608437,5.54610643,209.24,209.19,3.966418]
[1757079608940,7.65,209.23,209.19,3.966418]
[1757079609145,5.54610643,209.24,209.19,3.966418]
[1757079609447,7.65,209.23,209.19,3.966418]
[1757079609839,5.54610643,209.24,209.19,3.966418]
[1757079610046,7.65,209.23,209.19,3.966418]
[1757079610241,5.54610643,209.24,209.09,10.056418]
[1757079610446,7.65,209.23,209.09,10.056418]
[1757079610743,43.12,209.22,209.09,10.056418]
[1757079611048,7.65,209.21,209.09,10.056418]
[1757079611445,5.54610643,209.19,209.09,3.966418]
[1757079611947,7.65,209.18,209.09,3.966418]
[1757079613145,7.65,209.29,209.1,5.54610643]
[1757079613343,7.65,209.29,209.11,6.09]
[1757079613541,7.65,209.25,209.11,6.09]
[1757079613845,7.65,209.21,209.11,6.09]
[1757079614147,7.65,209.21,209.09,3.966418]
[1757079614940,7.65,209.17,209.09,3.966418]
[1757079615939,31.67,209.17,209.09,3.966418]
[1757079616139,7.65,209.17,209.09,3.966418]
[1757079616747,7.65,209.13,209.06,3.966418]
[1757079618552,5.54610643,209.14,209.06,3.966418]
[1757079618750,13.38610643,209.18,209.06,3.966418]
[1757079619941,134.88,209.18,209.06,3.966418]
[1757079620553,7.84,209.1,209.06,3.966418]
[1757079620748,7.84,209.19,209.07,6.11]
[1757079621748,307.98,209.2,209.07,6.11]
[1757079622048,7.84,209.24,209.11,10.4125]
[1757079622247,7.84,209.24,209.11,6.11]
[1757079623148,127.28,209.26,209.11,6.11]
[1757079623446,7.84,209.25,209.11,6.11]
[1757079623948,7.84,209.25,209.13,6.11]
[1757079624143,18.63487535,209.3,209.13,6.11]
[1757079624653,126.83487535,209.3,209.13,6.11]
[1757079624843,126.83487535,209.3,209.13,11.65610643]
[1757079625555,7.84,209.29,209.13,11.65610643]
[1757079625852,5.54610643,209.26,209.13,6.11]
[1757079626154,7.84,209.25,209.1,6.11]
[1757079626548,102.06,209.27,209.13,5.54610643]
[1757079626751,5.54610643,209.22,209.07,6.11]
[1757079626953,7.84,209.21,209.07,6.11]
[1757079627247,5.54610643,209.17,209.07,6.11]
[1757079627446,7.84,209.16,209.07,6.11]
[1757079627751,7.84,209.16,209.06,3.966418]
[1757079627948,52.26,209.2,209.06,10.076418]
[1757079628151,5.54610643,209.21,209.06,10.076418]
[1757079629757,5.54610643,209.21,209.08,6.11]
[1757079630056,7.84,209.22,209.09,6.11]
[1757079630252,321.0,209.37,209.09,6.11]
[1757079630253,14.35,209.35,209.09,6.11]
[1757079630452,7.84,209.27,209.12,5.54610643]
[1757079630660,7.84,209.27,209.13,6.11]
[1757079631152,5.54610643,209.26,209.13,6.11]
[1757079631456,7.84,209.27,209.13,6.11]
[1757079631652,5.54610643,209.32,209.13,6.11]
[1757079631858,141.58610643,209.32,209.13,6.11]
[1757079632250,141.58610643,209.32,209.16,6.11]
[1757079633257,13.38610643,209.32,209.16,6.11]
[1757079633460,141.50610643,209.32,209.16,6.11]
[1757079633659,7.84,209.27,209.16,6.11]
[1757079634159,7.84,209.27,209.11,10.4128]
[1757079634548,7.84,209.27,209.11,6.11]
[1757079634955,7.84,209.27,209.14,6.11]
[1757079635149,7.84,209.27,209.14,5.54610643]
[1757079635454,7.84,209.27,209.15,6.11]
[1757079635652,13.38610643,209.32,209.15,6.11]
[1757079635856,5.24876892,209.36,209.19,6.11]
[1757079636261,5.24876892,209.36,209.2,4.3008]
[1757079636459,5.54610643,209.34,209.19,6.11]
[1757079636657,7.84,209.33,209.19,6.11]
[1757079636963,5.54610643,209.31,209.19,6.11]
[1757079637965,7.84,209.33,209.19,6.11]
[1757079638161,7.84,209.33,209.21,6.11]
[1757079638356,13.38610643,209.38,209.21,6.11]
[1757079638561,7.84,209.38,209.25,6.11]
[1757079639464,5.24876892,209.4,209.27,5.54610643]
[1757079639659,5.24876892,209.4,209.25,6.11]
[1757079639859,5.24876892,209.4,209.27,11.65610643]
[1757079640166,5.24876892,209.4,209.3,6.11]
[1757079640862,7.84,209.43,209.3,6.11]
[1757079641063,13.38610643,209.43,209.3,6.11]
[1757079641661,13.38610643,209.43,209.21,6.11]
[1757079641967,7.84,209.38,209.21,6.11]
[1757079642163,7.84,209.34,209.21,6.11]
[1757079642974,5.54610643,209.43,209.24,66.8923]
[1757079642975,25.4,209.43,209.24,66.8923]
[1757079643274,25.4,209.43,209.28,6.11]
[1757079643476,25.4,209.43,209.28,10.4093]
[1757079643775,25.4,209.43,209.28,6.11]
[1757079643976,25.4,209.43,209.3,4.2989]
[1757079644176,7.84,209.43,209.3,4.2989]
[1757079644577,7.84,209.43,209.28,6.11]
[1757079645176,7.84,209.43,209.31,4.2987]
[1757079645373,7.84,209.43,209.28,6.11]
[1757079646868,7.84,209.4,209.21,6.11]
[1757079647073,64.64,209.4,209.21,6.11]
[1757079647478,8.89924996,209.37,209.21,6.11]
[1757079647777,7.84,209.36,209.21,6.11]
[1757079648076,7.84,209.36,209.24,3.966418]
[1757079648681,7.84,209.36,209.25,6.1]
[1757079648982,7.53,209.43,209.25,6.1]
[1757079649374,7.53,209.4,209.25,6.1]
[1757079651677,7.53,209.4,209.28,4.2994]
[1757079652384,7.53,209.4,209.29,6.1]
[1757079653290,7.53,209.4,209.24,4.3001]
[1757079653582,7.53,209.4,209.23,6.1]
[1757079653882,7.53,209.4,209.27,4.2993]
[1757079654780,7.53,209.4,209.23,14.99924996]
[1757079654982,16.42924996,209.4,209.23,6.1]
[1757079655281,16.42924996,209.4,209.23,10.4003]
[1757079655787,8.89924996,209.36,209.23,6.1]
[1757079655980,7.53,209.35,209.22,3.966418]
[1757079656281,8.89924996,209.28,209.22,3.966418]
[1757079656881,7.53,209.27,209.19,5.23590968]
[1757079658585,7.53,209.27,209.11,6.1]
[1757079658780,7.53,209.23,209.06,12.1939]
[1757079658975,8.89924996,209.24,209.06,12.1939]
[1757079659182,7.53,209.23,209.06,12.1939]
[1757079659786,7.53,209.23,209.08,4.3034]
[1757079660085,7.53,209.23,209.06,7.89]
[1757079660585,7.53,209.23,209.08,7.89]
[1757079661986,7.53,209.23,209.1,4.3029]
[1757079662289,7.53,209.28,209.09,7.89]
[1757079663181,7.53,209.25,209.09,7.89]
[1757079665186,7.53,209.25,209.11,8.89924996]
[1757079665390,316.69924996,209.32,209.15,8.89924996]
[1757079665391,7.53,209.31,209.15,8.89924996]
[1757079665584,5.24876892,209.35,209.2,7.89]
[1757079666588,7.53,209.34,209.15,7.89]
[1757079666781,7.53,209.31,209.15,7.89]
[1757079667883,49.99,209.31,209.15,7.89]
[1757079668083,8.89924996,209.28,209.12,5.23590968]
[1757079668288,7.53,209.27,209.12,5.23590968]
[1757079668683,7.53,209.27,209.12,13.12590968]
[1757079669091,7.53,209.27,209.13,7.89]
[1757079669494,7.53,209.33,209.14,7.89]